fUST/lending_fUST_20260130
["ID","MTS","AMOUNT","RATE_DAILY","PERIOD"]
[404012367,1769718648028,-303.10001603,0.00019089,2]
[404012368,1769718648037,-303.10001603,0.00019278,2]
[404012369,1769718648046,-1121.95,0.000193,2]
[404012370,1769718648055,-303.10001603,0.00019467,2]
[404012371,1769718648064,-303.10001603,0.00019656,2]
[404012372,1769718648073,-388.22303559,0.00019728,2]
[404012373,1769718648082,-1000.0,0.00019729,2]
[404012374,1769718648092,-1000.0,0.00019729,2]
[404012375,1769718648101,-454.65002405,0.00019845,4]
[404012376,1769718648111,-151.0,0.0002,2]
[404012377,1769718648122,-454.65002405,0.00020034,4]
[404012378,1769718648131,-454.65002405,0.00020223,4]
[404012379,1769718648141,-454.65002405,0.00020412,4]
[404012380,1769718648150,-454.65002405,0.00020601,4]
[404012381,1769718648160,-449.999999,0.00021,2]
[404012382,1769718648169,-157.21,0.000212,2]
[404012383,1769718648178,-5470.34,0.00021585,10]
[404012384,1769718648187,-1369.0,0.00021595,2]
[404012385,1769718648196,-2150.0,0.00021595,2]
[404012386,1769718648206,-630.0,0.00021595,2]
[404012387,1769718648216,-418.0,0.00021595,2]
[404012388,1769718648225,-179.0,0.00021595,2]
[404012389,1769718648234,-1000.0,0.00021702,10]
[404012390,1769718648244,-1000.0,0.00021702,10]
[404012391,1769718648254,-579.0,0.00021702,10]
[404012392,1769718648263,-425.00206001,0.00021728,2]
[404012393,1769718648272,-155.64982553,0.00021799,3]
[404012394,1769718648281,-151.0,0.00021799,3]
[404012395,1769718648291,-151.0,0.00021799,3]
[404012396,1769718648300,-187.78006525,0.00021799,3]
[404012397,1769718648309,-151.0,0.00021799,3]
[404012398,1769718648318,-194.72792766,0.00021799,3]
[404012399,1769718648327,-201.93286099,0.00021799,3]
[404012400,1769718648336,-209.40437684,0.00021799,3]
[404012401,1769718648346,-217.15233878,0.00021799,3]
[404012402,1769718648355,-225.18697532,0.00021799,3]
[404012403,1769718648364,-233.51889341,0.00021799,3]
[404012404,1769718648373,-242.15909246,0.00021799,3]
[404012405,1769718648382,-251.11897888,0.00021799,3]
[404012406,1769718648391,-260.4103811,0.00021799,3]
[404012407,1769718648401,-270.0455652,0.00021799,3]
[404012408,1769718648410,-280.03725112,0.00021799,3]
[404012409,1769718648420,-290.39862941,0.00021799,3]
[404012410,1769718648429,-301.1433787,0.00021799,3]
[404012411,1769718648439,-151.0,0.000218,4]
[404012412,1769718648450,-153.99,0.00022,2]
[404012413,1769718648459,-279.13,0.00022,7]
[404012414,1769718648468,-157.21,0.000234,2]
[404012415,1769718648477,-151.0,0.000236,7]
[404012416,1769718648487,-461.78108443,0.00023728,2]
[404012417,1769718648496,-1000.0,0.00023872,10]
[404012418,1769718648505,-1000.0,0.00023872,10]
[404012419,1769718648515,-1000.0,0.00023872,10]
[404012420,1769718648524,-1369.0,0.00024595,2]
[404012421,1769718648534,-2150.0,0.00024595,2]
[404012422,1769718648543,-630.0,0.00024595,2]
[404012423,1769718648552,-418.0,0.00024595,2]
[404012424,1769718648561,-179.0,0.00024595,2]
[404012425,1769718648571,-1121.95,0.000246,14]
[404012426,1769718648580,-335.4293699,0.00024658,2]
[404012427,1769718648589,-151.0,0.000254,18]
[404012428,1769718648599,-157.21,0.000257,2]
[404012429,1769718648608,-498.56010886,0.00025728,2]
[404012430,1769718648618,-1000.0,0.00026259,30]
[404012431,1769718648627,-1000.0,0.00026259,30]
[404012432,1769718648636,-1000.0,0.00026259,30]
[404012433,1769718648645,-715.0,0.00026259,30]
[404012434,1769718648655,-151.0,0.000272,15]
[404012435,1769718648664,-429.49783179,0.00027397,2]
[404012436,1769718648674,-1369.0,0.00027595,2]
[404012437,1769718648683,-2150.0,0.00027595,2]
[404012438,1769718648692,-171.769,0.00027595,2]
[404012439,1769718648701,-418.0,0.00027595,2]
[404012440,1769718648714,-179.0,0.00027595,2]
[404012441,1769718648723,-535.33913328,0.00027728,2]
[404012442,1769718648732,-157.21,0.000279,2]
[404012443,1769718648742,-38000.0,0.00028,7]
[404012444,1769718648751,-1041.66666667,0.00028,7]
[404012445,1769718648760,-28347.4606509,0.00028154,2]
[404012446,1769718648769,-1127.7362068,0.00028154,2]
[404012447,1769718648780,-1000.0,0.00028885,30]
[404012448,1769718648790,-1000.0,0.00028885,30]
[404012449,1769718648800,-1000.0,0.00028885,30]
[404012450,1769718648809,-279.13,0.000289,7]
[404012451,1769718648819,-1052.13840688,0.000289,2]
[404012452,1769718648828,-250877.57720039,0.00029,2]
[404012453,1769718648841,-4448.16968247,0.00029,2]
[404012459,1769719099308,8233.08825431,8.774e-05,2]
[404012460,1769719099329,10000.01,8.774e-05,2]
[404012461,1769719099349,10000.01,8.774e-05,2]
[404012462,1769719099372,5881.81903769,8.774e-05,2]
[404012466,1769719293868,4118.19096231,8.724e-05,2]
[404012467,1769719293894,1559.16301659,8.724e-05,2]
[404012468,1769719437628,2565.9670669,8.626e-05,2]
[404012536,1769719832353,-374.524,9.532e-05,2]
[404012537,1769719832363,-553.0,9.532e-05,2]
[404012538,1769719832372,-300.0,9.62e-05,2]
[404012539,1769719832381,-299.0,9.62e-05,2]
[404012540,1769719832391,-300.0,9.62e-05,2]
[404012541,1769719832400,-300.0,9.62e-05,2]
[404012543,1769719832409,-1200.0,9.62e-05,2]
[404012545,1769719832417,-500.0,9.623e-05,2]
[404012547,1769719832426,-208.84418304,9.623e-05,2]
[404012549,1769719832435,-500.0,9.623e-05,2]
[404012551,1769719832444,-500.0,9.623e-05,2]
[404012553,1769719832453,-564.50243887,9.623e-05,2]
[404012555,1769719832462,-500.0,9.623e-05,2]
[404012556,1769719832632,-500.0,9.623e-05,2]
[404012557,1769719832642,-537.78596935,9.623e-05,2]
[404012558,1769719832651,-500.0,9.623e-05,2]
[404012559,1769719832661,-7184.84577187,9.624e-05,2]
[404012566,1769719838350,-300.0,9.623e-05,2]
[404012567,1769719838359,-580.42128627,9.624e-05,2]
[404012568,1769719838403,-2012.70208524,9.624e-05,2]
[404012569,1769719838414,-500.0,9.624e-05,2]
[404012570,1769719838459,-27878.79897524,9.624e-05,2]
[404012571,1769719838470,-221.29336252,9.628e-05,2]
[404012572,1769719838480,-300.0,9.92e-05,2]
[404012573,1769719838489,-300.0,9.92e-05,2]
[404012574,1769719838499,-300.0,9.92e-05,2]
[404012575,1769719838510,-300.0,9.92e-05,2]
[404012576,1769719838519,-300.0,9.92e-05,2]
[404012577,1769719838530,-300.0,9.92e-05,2]
[404012578,1769719838538,-300.0,9.92e-05,2]
[404012579,1769719838548,-300.0,9.92e-05,2]
[404012580,1769719838557,-300.0,9.92e-05,2]
[404012581,1769719838567,-300.0,9.92e-05,2]
[404012582,1769719838576,-300.0,9.92e-05,2]
[404012583,1769719838585,-300.0,9.92e-05,2]
[404012584,1769719838595,-300.0,9.92e-05,2]
[404012585,1769719838605,-300.0,9.92e-05,2]
[404012586,1769719838614,-300.0,9.92e-05,2]
[404012587,1769719838624,-600.0,9.92e-05,2]
[404012588,1769719838633,-720.0,0.00010912,2]
[404012589,1769719838642,-177.0,0.00011576,2]
[404012590,1769719838652,-864.0,0.00012003,2]
[404012591,1769719838663,-1000.0,0.00013204,2]
[404012592,1769719838672,-522.6486575,0.00013273,2]
[404012593,1769719838682,-500.0,0.00013273,2]
[404012594,1769719838692,-281.81534647,0.00013273,2]
[404012595,1769719838701,-204.0,0.00013576,2]
[404012597,1769719838711,-300.0,0.00013673,2]
[404012598,1769719838720,-500.0,0.00013698,2]
[404012599,1769719838730,-221.99898215,0.00013698,2]
[404012601,1769719838739,-1185.302724,0.00013699,2]
[404012603,1769719838748,-1000.0,0.00013699,2]
[404012605,1769719838758,-500.0,0.00013699,2]
[404012607,1769719838767,-590.03498975,0.00013821,2]
[404012609,1769719838778,-1000.0,0.00014524,2]
[404012611,1769719838788,-244.0,0.00014524,2]
[404012613,1769719838799,-1041.66666667,0.00015541,2]
[404012615,1769719838808,-160.0,0.00015541,2]
[404012617,1769719838818,-231.0,0.00015576,2]
[404012619,1769719838827,-1000.0,0.00015976,2]
[404012621,1769719838836,-492.0,0.00015976,2]
[404012623,1769719838846,-1000.0,0.00017574,2]
[404012625,1769719838856,-791.0,0.00017574,2]
[404012627,1769719838866,-258.0,0.00017576,2]
[404012629,1769719838875,-153.5789033,0.00018478,2]
[404012631,1769719838885,-272.29,0.000188,2]
[404012633,1769719838895,-333.6986836,0.0001933,2]
[404012636,1769719838905,-476.06180754,0.0001933,2]
[404012637,1769719838914,-1000.0,0.00019331,2]
[404012639,1769719838924,-1000.0,0.00019331,2]
[404012641,1769719838933,-277.03739561,0.00019576,2]
[404012677,1769719840552,-1562.65302393,9.92e-05,2]
[404012683,1769719840607,-27415.57258338,9.92e-05,2]
[404012685,1769719840617,-7.96260439,0.00019576,2]
[404012687,1769719840627,-1185.302724,0.00020548,2]
[404012690,1769719840638,-2150.0,0.00021116,2]
[404012691,1769719840648,-1369.0,0.00021116,2]
[404012692,1769719840658,-179.0,0.00021116,2]
[404012693,1769719840667,-418.0,0.00021116,2]
[404012694,1769719840676,-1000.0,0.00021265,10]
[404012695,1769719840685,-1000.0,0.00021265,10]
[404012696,1769719840695,-579.0,0.00021265,10]
[404012697,1769719840704,-312.0,0.00021576,2]
[404012698,1769719840713,-187.78006525,0.00021799,4]
[404012699,1769719840722,-194.72792766,0.00021799,4]
[404012700,1769719840733,-201.93286099,0.00021799,4]
[404012701,1769719840742,-209.40437684,0.00021799,4]
[404012703,1769719840752,-217.15233878,0.00021799,4]
[404012705,1769719840760,-225.18697532,0.00021799,4]
[404012706,1769719840769,-233.51889341,0.00021799,4]
[404012707,1769719840779,-242.15909246,0.00021799,4]
[404012708,1769719840787,-348.62935879,0.00021799,4]
[404012709,1769719840797,-1000.0,0.00023391,10]
[404012710,1769719840806,-1000.0,0.00023391,10]
[404012711,1769719840816,-1000.0,0.00023391,10]
[404012712,1769719840825,-223.31,0.000234,7]
[404012713,1769719840834,-339.0,0.00023576,2]
[404012714,1769719840843,-582.577,0.00024116,2]
[404012715,1769719840852,-1369.0,0.00024116,2]
[404012716,1769719840861,-179.0,0.00024116,2]
[404012717,1769719840871,-418.0,0.00024116,2]
[404012718,1769719840880,-366.0,0.00025576,2]
[404012720,1769719840889,-1000.0,0.0002573,10]
[404012722,1769719840898,-1000.0,0.0002573,10]
[404012724,1769719840907,-1000.0,0.0002573,10]
[404012726,1769719840917,-715.0,0.0002573,10]
[404012727,1769719840927,-151.0,0.00027,7]
[404012728,1769719840936,-1369.0,0.00027116,2]
[404012729,1769719840945,-179.0,0.00027116,2]
[404012730,1769719840955,-418.0,0.00027116,2]
[404012731,1769719840964,-220.38479306,0.00027183,2]
[404012732,1769719840974,-800.0,0.00027295,2]
[404012733,1769719840985,-152.63050372,0.00027379,2]
[404012734,1769719840994,-680.99683053,0.00027385,2]
[404012735,1769719841004,-362.87693388,0.00027397,2]
[404012736,1769719841014,-796.5,0.00027406,2]
[404012737,1769719841023,-800.0,0.0002741,2]
[404012738,1769719841033,-800.0,0.00027411,2]
[404012739,1769719841044,-1041.66666667,0.00027411,10]
[404012740,1769719841058,-800.0,0.00027421,2]
[404012741,1769719841068,-803.5,0.00027435,2]
[404012742,1769719841078,-5036.73,0.00027437,10]
[404012743,1769719841089,-800.0,0.00027447,2]
[404012744,1769719841098,-261.96470452,0.0002748,2]
[404012745,1769719841108,-800.0,0.00027509,2]
[404012746,1769719841118,-800.0,0.00027546,2]
[404012747,1769719841128,-800.0,0.00027571,2]
[404012748,1769719841138,-393.0,0.00027576,2]
[404012749,1769719841147,-800.0,0.00027594,2]
[404012750,1769719841157,-151.0,0.00027671,14]
[404012751,1769719841166,-159.62665952,0.00028059,5]
[404012752,1769719841175,-185.4706062,0.00028192,30]
[404012753,1769719841184,-194.7135632,0.00028192,30]
[404012754,1769719841194,-604.1333812,0.00028192,30]
[404012755,1769719841204,-223.31,0.000283,7]
[404012756,1769719841213,-1000.0,0.00028303,30]
[404012757,1769719841223,-1000.0,0.00028303,30]
[404012758,1769719841232,-1000.0,0.00028303,30]
[404012759,1769719841241,-500.0,0.0002835,20]
[404012760,1769719841251,-10046.43523623,0.00028573,2]
[404012761,1769719841263,-1175.66830297,0.00028573,2]
[404012841,1769719845289,-10038.491949,0.00028573,2]
[404012843,1769719845299,-151.0,0.00028767,14]
[404012844,1769719845308,-841.71072552,0.000289,2]
[404012846,1769719845317,-623.2480812,0.00028986,30]
[404012849,1769719845327,-194.7135632,0.00028986,30]
[404012850,1769719845336,-236.762153,0.00028986,30]
[404012852,1769719845346,-4197.28,0.0002899,10]
[404012854,1769719845356,-181.492,0.00028999,2]
[404012856,1769719845366,-151868.94526568,0.00029,2]
[404012859,1769719845377,-891.910808,0.00029,2]
[404012861,1769719845388,-2309.25002831,0.00029,2]
[404012949,1769719846638,-4181.0,0.00029,2]
[404012950,1769719846650,-5821.93847606,0.00029,2]
[404012951,1769719846696,-3962.12720614,0.00029,2]
[404012952,1769719846708,-344.15242207,0.00029,2]
[404013065,1769719950227,162.79171936,0.00034732,120]
[404013066,1769719950564,162.79171936,0.00034732,120]
[404013067,1769719950832,154.39147907,0.00034732,120]
[404013068,1769720070276,162.79171935,0.00034732,120]
[404013069,1769720133365,922.97,0.00034732,120]
[404013072,1769720520305,-299.619,9.333e-05,2]
[404013073,1769720520361,-8547.94293982,9.423e-05,2]
[404013074,1769720523201,-300.0,9.422e-05,2]
[404013075,1769720523383,-9400.01,9.423e-05,2]
[404013093,1769720890406,500.0,0.00034726,120]
[404013094,1769720890660,505.21998961,0.00034726,120]
[404013163,1769721032669,-262.87439204,9.423e-05,2]
[404013164,1769721032728,-289.12560796,9.423e-05,2]
[404013165,1769721032739,-667.18650377,9.423e-05,2]
[404013199,1769721038688,-1384.88055641,9.423e-05,2]
[404013201,1769721038698,-500.0,9.521e-05,2]
[404013203,1769721038707,-591.0,9.521e-05,2]
[404013205,1769721038717,-386.13187173,9.522e-05,2]
[404013207,1769721038726,-500.0,9.522e-05,2]
[404013209,1769721038735,-500.0,9.522e-05,2]
[404013211,1769721038744,-461.04690308,9.522e-05,2]
[404013213,1769721038753,-500.0,9.522e-05,2]
[404013215,1769721038762,-387.98874709,9.522e-05,2]
[404013217,1769721038771,-918.97237484,9.713e-05,2]
[404013219,1769721038780,-300.0,9.713e-05,2]
[404013221,1769721038790,-300.0,9.713e-05,2]
[404013222,1769721038799,-300.0,9.713e-05,2]
[404013224,1769721038808,-300.0,9.713e-05,2]
[404013227,1769721038818,-300.0,9.713e-05,2]
[404013229,1769721038827,-300.0,9.713e-05,2]
[404013231,1769721038838,-300.0,9.713e-05,2]
[404013233,1769721038848,-300.0,9.713e-05,2]
[404013235,1769721038859,-300.0,9.713e-05,2]
[404013237,1769721038868,-300.0,9.713e-05,2]
[404013239,1769721038878,-300.0,9.713e-05,2]
[404013241,1769721038888,-300.0,9.713e-05,2]
[404013243,1769721038897,-300.0,9.713e-05,2]
[404013245,1769721038907,-300.0,9.713e-05,2]
[404013247,1769721038916,-300.0,9.713e-05,2]
[404013249,1769721038925,-600.0,9.713e-05,2]
[404013251,1769721038934,-720.0,0.00010684,2]
[404013252,1769721038943,-177.0,0.00011472,2]
[404013253,1769721038952,-864.0,0.00011752,2]
[404013254,1769721038961,-1000.0,0.00012928,2]
[404013255,1769721038971,-338.72225679,0.00013273,2]
[404013256,1769721038980,-524.91961321,0.00013273,2]
[404013257,1769721038990,-500.0,0.00013273,2]
[404013258,1769721038998,-500.0,0.00013273,2]
[404013259,1769721039008,-204.0,0.00013472,2]
[404013260,1769721039016,-500.0,0.00013699,2]
[404013261,1769721039025,-404.90719171,0.00013699,2]
[404013262,1769721039035,-592.41079471,0.00013821,2]
[404013263,1769721039044,-1000.0,0.0001422,2]
[404013264,1769721039054,-244.0,0.0001422,2]
[404013265,1769721039064,-1445.26019987,0.0001471,2]
[404013266,1769721039089,-466.23922399,0.0001471,2]
[404013421,1769721040843,-485.07756602,0.0001471,2]
[404013426,1769721040903,-7603.42301012,0.0001471,2]
[404013427,1769721040912,-190.842462,0.00015068,2]
[404013429,1769721040926,-231.0,0.00015472,2]
[404013430,1769721040935,-1041.66666667,0.00015597,2]
[404013432,1769721040944,-160.0,0.00015597,2]
[404013433,1769721040955,-1000.0,0.00015642,2]
[404013435,1769721040964,-492.0,0.00015642,2]
[404013436,1769721040973,-300.0,0.00015839,2]
[404013437,1769721040981,-1000.0,0.00017207,2]
[404013438,1769721040990,-791.0,0.00017207,2]
[404013439,1769721040999,-258.0,0.00017472,2]
[404013441,1769721041008,-151.0,0.00017759,2]
[404013442,1769721041016,-151.0,0.00017759,2]
[404013444,1769721041026,-151.0,0.00017759,2]
[404013445,1769721041034,-152.0,0.00017759,2]
[404013447,1769721041043,-151.0,0.00017759,2]
[404013448,1769721041052,-152.0,0.00017759,2]
[404013450,1769721041061,-152.0,0.00017759,2]
[404013451,1769721041070,-151.0,0.00017759,2]
[404013453,1769721041079,-152.0,0.00017759,2]
[404013454,1769721041088,-151.0,0.00017759,2]
[404013456,1769721041098,-152.0,0.00017759,2]
[404013457,1769721041107,-151.0,0.00017759,2]
[404013459,1769721041116,-240.0,0.00017759,2]
[404013460,1769721041125,-151.0,0.00017759,2]
[404013462,1769721041134,-335.0,0.00017759,2]
[404013463,1769721041143,-335.0,0.00017759,2]
[404013465,1769721041151,-335.0,0.00017759,2]
[404013467,1769721041161,-335.0,0.00017759,2]
[404013468,1769721041170,-299.06357566,0.00017759,2]
[404013773,1769721045107,-35.93642434,0.00017759,2]
[404013775,1769721045117,-335.0,0.00017759,2]
[404013777,1769721045125,-301.87198699,0.00017759,2]
[404013779,1769721045137,-33.12801301,0.00017759,2]
[404013781,1769721045146,-335.0,0.00017759,2]
[404013783,1769721045155,-335.0,0.00017759,2]
[404013785,1769721045164,-335.0,0.00017759,2]
[404013787,1769721045173,-335.0,0.00017759,2]
[404013789,1769721045182,-335.0,0.00017759,2]
[404013791,1769721045190,-335.0,0.00017759,2]
[404013793,1769721045200,-335.0,0.00017759,2]
[404013795,1769721045210,-335.0,0.00017759,2]
[404013797,1769721045220,-335.0,0.00017759,2]
[404013799,1769721045229,-335.0,0.00017759,2]
[404013801,1769721045237,-335.0,0.00017759,2]
[404013803,1769721045246,-335.0,0.00017759,2]
[404013805,1769721045255,-335.0,0.00017759,2]
[404013807,1769721045265,-335.0,0.00017759,2]
[404013809,1769721045274,-335.0,0.00017759,2]
[404013811,1769721045283,-335.0,0.00017759,2]
[404013812,1769721045292,-335.0,0.00017759,2]
[404013814,1769721045301,-335.0,0.00017759,2]
[404013816,1769721045310,-335.0,0.00017759,2]
[404013819,1769721045322,-335.0,0.00017759,2]
[404013820,1769721045331,-335.0,0.00017759,2]
[404013822,1769721045341,-335.0,0.00017759,2]
[404013824,1769721045350,-335.0,0.00017759,2]
[404013826,1769721045359,-335.0,0.00017759,2]
[404013829,1769721045372,-335.0,0.00017759,2]
[404013831,1769721045381,-418.0,0.00018594,2]
[404013832,1769721045390,-179.0,0.00018594,2]
[404013834,1769721045399,-1000.0,0.00018927,2]
[404013836,1769721045409,-1000.0,0.00018927,2]
[404013838,1769721045418,-285.0,0.00019472,2]
[404013840,1769721045427,-1000.0,0.0002082,2]
[404013842,1769721045436,-560.0176169,0.0002082,2]
[404013845,1769721045449,-439.9823831,0.0002082,2]
[404013847,1769721045458,-579.0,0.0002082,2]
[404013849,1769721045467,-2358.2612304,0.00021,2]
[404013852,1769721045489,-256.2,0.00017759,2]
[404013904,1769721045977,-78.8,0.00017759,2]
[404013906,1769721045987,-335.0,0.00017759,2]
[404013908,1769721045998,-641.7387696,0.00021,2]
[404013910,1769721046008,-3000.0,0.0002101,2]
[404013912,1769721046017,-3000.0,0.0002102,2]
[404013914,1769721046027,-3000.0,0.0002103,2]
[404013916,1769721046036,-3000.0,0.0002104,2]
[404013918,1769721046046,-3000.0,0.0002105,2]
[404013920,1769721046055,-784.74951463,0.0002106,2]
[404013922,1769721046067,-2215.25048537,0.0002106,2]
[404013924,1769721046076,-3000.0,0.0002107,2]
[404013926,1769721046086,-854.08942711,0.0002108,2]
[404013928,1769721046097,-2145.91057289,0.0002108,2]
[404013930,1769721046107,-3000.0,0.0002109,2]
[404013932,1769721046116,-3000.0,0.000211,2]
[404013934,1769721046125,-3000.0,0.0002111,2]
[404013936,1769721046135,-1369.0,0.00021116,2]
[404013938,1769721046144,-3000.0,0.0002112,2]
[404013940,1769721046154,-699.01219232,0.0002113,2]
[404013942,1769721046165,-2300.98780768,0.0002113,2]
[404013944,1769721046175,-3000.0,0.0002114,2]
[404013945,1769721046184,-1775.87813188,0.0002115,2]
[404013954,1769721047035,-335.0,0.00017759,2]
[404013955,1769721047045,-335.0,0.00017759,2]
[404013956,1769721047054,-177.0,0.00020176,2]
[404013957,1769721047063,-12.46617756,0.0002115,2]
[404013996,1769721318512,199.0,0.00021479,120]
[404013997,1769721319995,199.0,0.00022553,120]
[404013998,1769721321460,199.0,0.00023681,120]
[404013999,1769721322926,199.0,0.00024865,120]
[404014000,1769721324680,199.0,0.00026108,120]
[404014001,1769721326127,199.0,0.00027414,120]
[404014002,1769721327518,199.0,0.00028785,120]
[404014003,1769721344983,187.0,0.00021586,120]
[404014004,1769721346894,187.0,0.00022665,120]
[404014005,1769721348724,187.0,0.00023799,120]
[404014006,1769721350209,187.0,0.00024989,120]
[404014007,1769721609100,200.0,0.00021616,120]
[404014008,1769721610564,200.0,0.00022697,120]
[404014009,1769721611929,200.0,0.00023832,120]
[404014012,1769721850707,500.0,0.00034725,120]
[404014013,1769721850991,500.34011518,0.00034725,120]
[404014111,1769722231816,-352.01140376,0.00012213,2]
[404014117,1769722237744,-239.98859624,0.00012213,2]
[404014118,1769722237753,-5804.29321273,0.00012213,2]
[404014119,1769722237801,-2077.549415,0.00012213,2]
[404014120,1769722237811,-2696.83034337,0.00012213,2]
[404014121,1769722237821,-300.0,0.00012456,2]
[404014122,1769722237831,-300.0,0.00012456,2]
[404014123,1769722237839,-300.0,0.00012456,2]
[404014124,1769722237849,-300.0,0.00012456,2]
[404014125,1769722237858,-300.0,0.00012456,2]
[404014126,1769722237867,-300.0,0.00012456,2]
[404014127,1769722237877,-300.0,0.00012456,2]
[404014128,1769722237886,-300.0,0.00012456,2]
[404014129,1769722237896,-300.0,0.00012456,2]
[404014130,1769722237905,-300.0,0.00012456,2]
[404014131,1769722237914,-300.0,0.00012456,2]
[404014132,1769722237924,-300.0,0.00012456,2]
[404014133,1769722237933,-300.0,0.00012456,2]
[404014134,1769722237942,-300.0,0.00012456,2]
[404014135,1769722237952,-300.0,0.00012456,2]
[404014136,1769722237961,-600.0,0.00012704,2]
[404014137,1769722237970,-239.695,0.00012909,2]
[404014138,1769722237980,-601.28317409,0.00013072,2]
[404014139,1769722237989,-500.0,0.00013072,2]
[404014140,1769722237999,-10969.19202089,0.00013073,2]
[404014141,1769722238010,-10101.51925515,0.00013073,2]
[404014142,1769722238019,-489.2849483,0.00013273,2]
[404014143,1769722238028,-500.0,0.00013273,2]
[404014144,1769722238038,-500.0,0.00013273,2]
[404014145,1769722238050,-500.0,0.00013273,2]
[404014146,1769722238060,-500.0,0.00013273,2]
[404014147,1769722238069,-175.84126355,0.00013273,2]
[404014148,1769722238078,-500.0,0.00013273,2]
[404014149,1769722238088,-503.70808855,0.00013273,2]
[404014150,1769722238097,-500.0,0.00013273,2]
[404014151,1769722238107,-1122.20798947,0.00013273,2]
[404014152,1769722238116,-500.0,0.00013273,2]
[404014153,1769722238126,-500.0,0.00013273,2]
[404014154,1769722238135,-500.0,0.00013273,2]
[404014155,1769722238145,-500.0,0.00013273,2]
[404014156,1769722238156,-500.0,0.00013273,2]
[404014157,1769722238165,-500.0,0.00013273,2]
[404014158,1769722238174,-335.0,0.00013458,2]
[404014159,1769722238184,-335.0,0.00013458,2]
[404014160,1769722238194,-335.0,0.00013458,2]
[404014161,1769722238203,-335.0,0.00013458,2]
[404014162,1769722238213,-335.0,0.00013458,2]
[404014163,1769722238222,-335.0,0.00013458,2]
[404014164,1769722238231,-335.0,0.00013458,2]
[404014165,1769722238240,-335.0,0.00013458,2]
[404014166,1769722238250,-335.0,0.00013458,2]
[404014167,1769722238259,-335.0,0.00013458,2]
[404014168,1769722238269,-335.0,0.00013458,2]
[404014169,1769722238278,-335.0,0.00013458,2]
[404014170,1769722238287,-335.0,0.00013458,2]
[404014171,1769722238297,-1000.0,0.00013699,2]
[404014172,1769722238306,-592.651362,0.00013699,2]
[404014173,1769722238316,-500.0,0.00013699,2]
[404014174,1769722238325,-629.74375965,0.00013975,2]
[404014215,1769722240067,-90.25624035,0.00013975,2]
[404014216,1769722240077,-177.0,0.00014941,2]
[404014217,1769722240087,-864.0,0.00015372,2]
[404014218,1769722240096,-809.25725741,0.000154,2]
[404014219,1769722240118,-102.84783467,0.000154,2]
[404014559,1769722246094,-5231.390827,0.000154,2]
[404014819,1769723431859,-579.0,0.00011331,2]
[404014820,1769723431869,-300.0,0.00011331,2]
[404014821,1769723431879,-399.3809091,0.00011935,2]
[404014822,1769723431889,-300.0,0.00012035,2]
[404014823,1769723431898,-1074.14832826,0.00012036,2]
[404014824,1769723431908,-300.0,0.00012036,2]
[404014825,1769723431917,-1200.0,0.00012036,2]
[404014826,1769723431926,-10709.11789909,0.00012037,2]
[404014827,1769723431941,-1690.519313,0.00012037,2]
[404014851,1769723438016,-1248.73244748,0.00012037,2]
[404014852,1769723438028,-13427.2122506,0.00012037,2]
[404014853,1769723438081,-6641.44496277,0.00012037,2]
[404014854,1769723438095,-3453.12299051,0.00012037,2]
[404014855,1769723438105,-900.7001803,0.00012037,2]
[404014875,1769723440153,-17664.664925,0.00012037,2]
[404015289,1769723444448,-433.3,0.00012037,2]